bitfinex/quotes_ETHUSD_20240823
["timestamp","ask_amount","ask_price","bid_price","bid_amount"]
[1724397532173,4.8207585,2682.5,2682.1,5.0]
[1724397532689,1.0928685,2682.5,2682.1,5.0]
[1724397532984,1.0928685,2682.5,2682.0,5.0]
[1724397533186,4.8207485,2682.5,2682.0,5.0]
[1724397533396,3.5265685,2682.3,2682.0,5.0]
[1724397533953,3.5265685,2682.3,2681.8,5.0]
[1724397537019,3.5265685,2682.3,2681.9,5.0]
[1724397538628,2.4892,2682.6,2682.0,2.294]
[1724397538974,5.4892,2682.6,2682.1,5.0]
[1724397539535,1.0928685,2682.5,2682.1,5.0]
[1724397540125,4.0928685,2682.5,2682.0,5.0]
[1724397540290,1.03098385,2682.4,2682.0,5.0]
[1724397540973,1.03098385,2682.4,2681.9,5.0]
[1724397541171,4.0928685,2682.5,2681.9,5.0]
[1724397542009,4.0928685,2682.5,2682.1,5.0]
[1724397542512,3.0,2682.5,2682.1,5.0]
[1724397543301,3.0,2682.5,2682.1,4.998688]
[1724397543913,6.72787,2682.5,2682.1,4.998688]
[1724397544114,1.0928685,2682.4,2682.1,4.998688]
[1724397545914,1.0928685,2682.4,2682.0,5.0]
[1724397548121,1.0928685,2682.4,2682.1,5.0]
[1724397548701,4.8208685,2682.4,2682.1,5.0]
[1724397548901,4.8208685,2682.4,2681.8,2.3884]
[1724397548902,4.8208685,2682.4,2681.9,5.0]
[1724397549308,3.72836,2682.2,2681.9,5.0]
[1724397549889,6.02241,2682.3,2681.9,5.0]
[1724397550359,9.75063,2682.3,2681.9,5.0]
[1724397550536,6.02241,2682.3,2681.9,5.0]
[1724397550885,6.02241,2682.3,2681.8,5.0]
[1724397550886,9.75063,2682.3,2681.8,5.0]
[1724397551149,6.02241,2682.3,2681.8,5.0]
[1724397551890,6.02241,2682.3,2681.9,5.0]
[1724397553011,6.02241,2682.3,2681.8,5.0]
[1724397553597,2.2942,2682.3,2681.8,5.0]
[1724397554032,1.0928685,2682.2,2682.0,5.0]
[1724397554233,1.560816,2682.2,2682.0,5.0]
[1724397554739,1.0928685,2682.2,2682.0,5.0]
[1724397554896,3.0,2682.5,2682.0,5.0]
[1724397555104,4.0928685,2682.5,2682.0,5.0]
[1724397556031,7.8207585,2682.5,2682.0,5.0]
[1724397556608,4.8210785,2682.3,2682.0,5.0]
[1724397556803,2.2688,2682.1,2682.0,5.0]
[1724397557020,2.2688,2682.1,2681.7,5.0]
[1724397557961,5.9973,2682.1,2681.7,5.0]
[1724397558100,7.0901685,2682.1,2681.7,5.0]
[1724397558798,3.3616685,2682.1,2681.7,5.0]
[1724397559255,3.3446685,2682.3,2681.7,5.0]
[1724397559555,2.2518,2682.3,2681.7,7.3159]
[1724397559903,2.2518,2682.3,2682.0,5.0]
[1724397560799,2.2518,2682.3,2681.8,5.0]
[1724397560800,1.0928685,2682.2,2681.8,5.0]
[1724397561102,2.3621,2681.9,2681.8,5.0]
[1724397561303,9.81948,2681.9,2681.8,5.0]
[1724397561546,12.81948,2681.9,2681.8,5.0]
[1724397561901,2.4543,2681.6,2681.1,5.0]
[1724397562099,1.0928685,2681.5,2681.1,5.0]
[1724397562663,2.4543,2681.6,2681.1,5.0]
[1724397562949,1.0928685,2681.5,2681.3,5.0]
[1724397563962,1.0928685,2681.5,2681.0,5.0]
[1724397564904,1.0928685,2681.5,2681.1,5.0]
[1724397565301,1.0928685,2681.3,2681.1,5.0]
[1724397565811,1.67793849,2681.3,2681.1,5.0]
[1724397566034,1.67793849,2681.3,2680.9,0.1293213]
[1724397566035,1.0928685,2681.3,2680.9,5.1293213]
[1724397567119,1.0928685,2681.3,2681.0,5.0]
[1724397567356,2.2538,2681.4,2681.0,5.0]
[1724397567658,3.9449695,2681.4,2681.0,5.0]
[1724397568004,2.4471,2681.3,2680.9,0.1293213]
[1724397569313,1.0928685,2681.0,2680.9,0.1293213]
[1724397569451,3.4046685,2681.0,2680.9,0.1293213]
[1724397571751,2.4519,2681.3,2680.9,0.1293213]
[1724397572000,3.5447685,2681.3,2680.9,0.1293213]
[1724397573004,3.5447685,2681.3,2680.9,5.1293213]
[1724397573747,3.4610685,2681.1,2680.9,5.1293213]
[1724397574148,3.4610685,2681.1,2680.9,0.1293213]
[1724397574331,1.0928685,2681.1,2680.9,0.1293213]
[1724397574677,2.3682,2681.4,2680.9,3.8593413]
[1724397574964,2.3682,2681.4,2680.9,0.1293213]
[1724397575116,2.3682,2681.4,2681.1,5.0]
[1724397575449,3.01430685,2681.4,2681.1,5.0]
[1724397575614,1.0928685,2681.3,2681.1,5.0]
[1724397576155,1.0928685,2681.3,2680.9,5.1293213]
[1724397576998,4.0928685,2681.5,2680.9,0.1293213]
[1724397577999,7.8221885,2681.5,2680.9,5.1293213]
[1724397578356,3.5018685,2681.3,2680.9,5.1293213]
[1724397578960,3.5018685,2681.3,2681.0,5.0]
[1724397583715,3.72969,2681.2,2681.0,5.0]
[1724397584013,3.5018685,2681.3,2681.0,5.0]
[1724397584014,7.2314085,2681.3,2681.0,5.0]
[1724397584958,5.3441,2681.5,2681.0,5.0]
[1724397585275,2.3763,2682.0,2681.2,3.3522685]
[1724397585408,2.75743044,2682.0,2681.2,3.3522685]
[1724397585644,6.48602044,2682.0,2681.2,3.3522685]
[1724397585915,1.0928685,2681.9,2681.5,5.0]
[1724397586108,1.85075739,2681.9,2681.5,5.0]
[1724397587152,5.57951739,2681.9,2681.5,5.0]
[1724397587380,1.85075739,2681.9,2681.5,5.0]
[1724397588091,1.85075739,2681.9,2681.4,5.0]
[1724397588661,1.0928685,2681.7,2681.4,5.0]
[1724397588992,1.65082324,2681.7,2681.2,5.0]
[1724397590948,1.0928685,2681.7,2681.3,5.0]
[1724397592031,1.0928685,2681.7,2681.1,3.7297]
[1724397592032,1.0928685,2681.7,2681.4,5.0]
[1724397592762,2.294,2681.6,2681.4,5.0]
[1724397592962,2.294,2681.6,2681.2,5.0]
[1724397595719,3.00557485,2681.6,2681.2,5.0]
[1724397596029,3.00557485,2681.6,2681.3,5.0]
[1724397596206,2.294,2681.6,2681.3,5.0]
[1724397597002,2.294,2681.6,2681.1,5.0]
[1724397597912,2.294,2681.6,2681.3,5.0]
[1724397598569,2.3991,2681.8,2681.3,5.0]
[1724397598770,3.23505478,2681.8,2681.3,5.0]
[1724397600000,3.23505478,2681.8,2681.4,5.0]
[1724397601717,0.83595478,2681.8,2681.4,5.0]
[1724397601935,1.0928685,2681.9,2681.5,5.0]
[1724397602874,1.0928685,2681.9,2681.4,5.0]
[1724397603919,1.0928685,2681.9,2681.5,5.0]
[1724397604125,2.72703044,2682.0,2681.5,5.0]
[1724397604331,2.3459,2682.0,2681.5,7.404]
[1724397604482,5.3228,2682.2,2681.6,3.7291]
[1724397604703,5.3228,2682.2,2681.5,11.13325]
[1724397604704,2.3228,2682.2,2681.5,11.13325]
[1724397604922,2.3228,2682.2,2681.7,5.0]
[1724397605879,2.3228,2682.2,2681.9,5.0]
[1724397606090,3.03716785,2682.2,2681.9,5.0]
[1724397607009,2.4429,2682.0,2681.6,5.0]
[1724397608044,2.4429,2682.0,2681.7,5.0]
[1724397610238,2.3521,2682.4,2681.7,6.0928685]
[1724397610447,0.58491728,2682.2,2681.8,3.72873]
[1724397610734,0.58491728,2682.2,2682.0,3.72842]
[1724397611307,0.58491728,2682.2,2681.9,5.0]
[1724397611308,2.3521,2682.8,2682.1,10.9341085]
[1724397611610,2.3521,2682.8,2682.1,10.9340285]
[1724397611811,2.3521,2682.8,2682.1,7.2056085]
[1724397612014,2.3521,2682.8,2682.0,19.06838113]
[1724397612015,3.4449685,2682.8,2682.5,5.0]
[1724397612203,3.5454685,2682.6,2682.5,5.0]
[1724397612540,7.2731885,2682.6,2682.5,5.0]
[1724397613033,2.4526,2682.5,2682.0,19.06838113]
[1724397614276,2.4589,2682.1,2682.0,19.06838113]
[1724397614413,2.4589,2682.1,2681.9,5.0]
[1724397614816,2.4522,2682.3,2681.9,5.0]
[1724397615011,2.4522,2682.3,2682.0,5.0]
[1724397615255,2.4522,2682.1,2682.0,5.0]
[1724397616059,2.4522,2682.1,2681.6,19.06838113]
[1724397616367,1.0928685,2682.0,2681.6,19.06838113]
[1724397616530,2.4522,2682.1,2681.6,19.06838113]
[1724397616918,2.4522,2682.1,2681.7,5.0]
[1724397618072,2.4522,2682.1,2681.8,5.0]
[1724397619069,2.4522,2682.1,2681.9,5.0]
[1724397621092,2.4522,2682.1,2681.8,5.0]
[1724397621254,3.17952085,2682.1,2681.8,5.0]
[1724397621950,3.17952085,2682.1,2681.6,24.06838113]
[1724397622149,1.0928685,2682.0,2681.6,24.06838113]
[1724397622387,6.09441,2681.9,2681.6,24.06838113]
[1724397622860,2.3657,2681.9,2681.6,19.06838113]
[1724397624072,2.3657,2681.9,2681.6,24.06838113]
[1724397626759,3.08440685,2681.9,2681.6,24.06838113]
[1724397627194,3.08440685,2681.9,2681.6,19.06838113]
[1724397627390,2.3657,2681.9,2681.6,19.06838113]
[1724397627760,3.5042685,2682.1,2681.6,19.06838113]
[1724397628095,3.5042685,2682.1,2681.6,27.79749113]
[1724397628293,3.5042685,2682.1,2681.6,24.06838113]
[1724397628491,3.85469535,2682.1,2681.6,24.06838113]
[1724397628691,1.0928685,2681.9,2681.6,5.0]
[1724397628879,1.0928685,2681.9,2681.4,5.0]
[1724397628880,2.435,2681.8,2681.4,5.0]
[1724397630595,1.0928685,2681.7,2681.4,5.0]
[1724397631093,1.0928685,2681.7,2681.3,5.0]
[1724397631699,1.0928685,2681.7,2681.4,0.07521315]
[1724397632369,3.72812,2682.4,2681.4,0.07521315]
[1724397632698,2.2829,2682.1,2681.4,0.07521315]
[1724397632853,1.0928685,2682.0,2681.4,5.07521315]
[1724397633359,2.4669,2681.7,2681.4,5.07521315]
[1724397633559,0.35597685,2681.6,2681.4,5.07521315]
[1724397633759,2.4669,2681.7,2681.4,5.07521315]
[1724397633987,2.4669,2681.7,2681.4,0.07521315]
[1724397636053,2.4669,2681.7,2681.2,5.0]
[1724397636258,2.4669,2681.7,2681.3,0.07693741]
[1724397636491,2.4669,2681.7,2681.2,5.0]
[1724397636667,2.4669,2681.7,2681.4,0.07689285]
[1724397636892,2.4669,2681.7,2681.1,5.0]
[1724397637259,3.19574785,2681.7,2681.2,0.07457348]
[1724397637774,2.4669,2681.5,2681.2,0.07457348]
[1724397638363,2.4669,2681.5,2681.0,5.0]
[1724397638759,6.19616,2681.5,2681.1,0.07465708]
[1724397638959,6.92506285,2681.5,2681.1,0.07465708]
[1724397639396,6.92506285,2681.5,2680.9,0.1293213]
[1724397639596,7.2590985,2681.4,2681.2,0.07461251]
[1724397639797,7.2590985,2681.4,2680.9,0.1293213]
[1724397640163,7.2590985,2681.4,2681.0,0.07470166]
[1724397640401,1.17172614,2681.3,2681.0,0.07470166]
[1724397640788,4.90125614,2681.3,2681.0,0.07470166]
[1724397643599,6.01441,2681.1,2681.0,0.07470166]
[1724397643793,5.86229107,2681.1,2681.0,0.07470166]
[1724397644776,9.59210107,2681.1,2681.0,0.07470166]
[1724397645113,10.77777064,2681.1,2681.0,0.07470166]
[1724397645785,3.72995,2681.0,2680.9,0.1293213]
[1724397646112,4.8228185,2681.0,2680.9,0.1293213]
[1724397647374,7.1074185,2681.0,2680.9,0.1293213]
[1724397647589,10.8373685,2681.0,2680.9,0.19759029]
[1724397647885,15.03967231,2681.0,2680.9,0.19759029]
[1724397648215,15.03967231,2681.0,2680.9,0.1293213]
[1724397648602,13.94680381,2681.0,2680.9,0.1293213]
[1724397648808,17.67675381,2681.0,2680.9,0.1293213]
[1724397648994,18.22675381,2681.0,2680.9,0.1293213]
[1724397654310,3.73128,2680.1,2679.7,5.0]
[1724397654867,3.73128,2680.1,2679.8,0.06654871]
[1724397655141,6.1629,2680.2,2679.6,7.4084]
[1724397655340,2.4318,2680.2,2679.6,7.4084]
[1724397655640,3.73069,2680.5,2679.7,0.06659333]
[1724397655840,6.73087,2680.4,2679.7,0.06659333]
[1724397656014,3.0,2680.4,2679.9,5.0]
[1724397656227,3.0,2680.4,2680.0,2.2923]
[1724397656428,3.0,2680.4,2680.0,2.35931482]
[1724397656819,3.0,2680.4,2680.0,7.35931482]
[1724397659252,6.73085,2680.4,2680.0,5.06701482]
[1724397660027,3.73093,2680.3,2680.0,0.06701482]
[1724397660954,3.0,2680.4,2680.0,0.06701482]
[1724397661452,6.73086,2680.4,2680.0,0.06701482]
[1724397661610,3.0,2680.4,2680.0,0.06701482]
[1724397661817,3.72999,2681.0,2680.1,2.4317]
[1724397662059,3.73038,2680.7,2680.1,2.4317]
[1724397662468,3.73053,2680.6,2680.2,0.06689462]
[1724397662983,3.73082,2680.4,2680.2,0.06689462]
[1724397663384,7.46168,2680.4,2680.2,0.06689462]
[1724397663824,3.73092,2680.3,2680.2,0.06689462]
[1724397664323,3.73092,2680.3,2679.9,2.3045]
[1724397664493,3.73092,2680.3,2680.2,0.06689462]
[1724397664698,3.73092,2680.3,2679.7,7.4321]
[1724397664891,3.73092,2680.3,2679.8,0.06707305]
[1724397665099,3.73092,2680.3,2679.7,7.4321]
[1724397665307,3.73092,2680.3,2679.8,0.06707305]
[1724397665682,3.73092,2680.3,2679.7,7.4321]
[1724397665887,6.20482,2680.4,2679.8,5.06767285]
[1724397666091,9.93571,2680.4,2679.8,5.06767285]
[1724397666331,6.20482,2680.4,2679.8,5.06767285]
[1724397666512,3.73057,2680.6,2679.9,2.4377]
[1724397666701,3.0,2680.5,2679.9,2.4377]
[1724397666897,3.0,2680.5,2680.0,0.06763362]
[1724397667785,6.73067,2680.5,2680.0,0.06763362]
[1724397668090,6.73067,2680.5,2680.0,5.06763362]
[1724397668490,7.82721398,2680.5,2680.0,5.06763362]
[1724397670401,11.55796398,2680.5,2680.0,5.06763362]
[1724397670797,7.82721398,2680.5,2680.0,5.06763362]
[1724397671112,3.0,2680.5,2680.1,2.2587]
[1724397671630,6.73067,2680.5,2680.2,0.06754441]
[1724397671835,10.46139,2680.5,2680.2,0.06754441]
[1724397672044,8.41251729,2680.5,2680.2,0.06754441]
[1724397672207,11.74826902,2680.5,2680.2,0.06754441]
[1724397672527,3.73106,2680.2,2680.0,5.0]
[1724397672896,8.41258729,2680.5,2679.9,7.4511]
[1724397673426,3.58530331,2680.5,2680.0,2.4511]
[1724397673600,0.58530331,2680.5,2680.0,2.4511]
[1724397673989,0.58530331,2680.5,2680.2,5.0]
[1724397674488,0.58530331,2680.5,2680.3,0.06749981]
[1724397674685,0.58530331,2680.5,2680.2,5.0]
[1724397674894,0.58530331,2680.5,2680.3,2.34229981]
[1724397676030,0.58530331,2680.5,2680.4,5.0]
[1724397676425,0.58530331,2680.5,2680.4,5.06734966]
[1724397677231,0.58530331,2680.5,2680.4,7.41774966]
[1724397678204,0.58530331,2680.5,2680.4,8.51429364]
[1724397679350,0.16896305,2682.0,2680.5,2.2793]
[1724397679351,4.82602398,2681.4,2680.5,2.2793]
[1724397679491,1.68181168,2681.3,2680.6,1.09654398]
[1724397679692,0.58517628,2681.3,2680.7,0.06701592]
[1724397679891,0.58517628,2681.3,2680.8,5.0]
[1724397680152,0.58517628,2681.3,2680.9,0.06692676]
[1724397680452,4.31470628,2681.3,2680.9,0.06692676]
[1724397681911,4.31470628,2681.3,2680.9,5.06692676]
[1724397683043,0.58517628,2681.3,2680.9,7.35492676]
[1724397684907,0.58517628,2681.3,2681.2,5.0]
[1724397685122,0.58517628,2681.3,2681.2,5.06647647]
[1724397686006,0.58517628,2681.3,2681.2,0.06647647]
[1724397686447,0.58517628,2681.3,2681.0,5.0]
[1724397686745,0.58517628,2681.3,2681.1,0.06652104]
[1724397687951,0.58517628,2681.3,2681.1,5.06652104]
[1724397688861,0.58517628,2681.3,2681.1,0.06652104]
[1724397689024,2.86917628,2681.3,2681.1,0.06652104]
[1724397689221,7.40319391,2681.3,2681.1,0.06652104]
[1724397689473,3.72967,2681.2,2681.1,0.06652104]
[1724397689675,4.82621398,2681.2,2681.1,0.06652104]
[1724397690042,1.09654398,2681.2,2681.1,0.06652104]
[1724397690362,0.58517628,2681.3,2680.7,14.95762]
[1724397690662,0.58517628,2681.3,2681.1,0.06619894]
[1724397690836,0.58517628,2681.3,2681.0,5.0]
[1724397691029,0.58517628,2681.3,2681.2,0.06615437]
[1724397691237,0.58517628,2681.3,2681.1,0.06619894]
[1724397691434,0.58517628,2681.3,2681.2,0.06615437]
[1724397692127,0.58517628,2681.3,2681.0,5.0]
[1724397692497,0.58517628,2681.3,2681.1,0.06619894]
[1724397692667,4.16112863,2681.2,2681.1,0.06619894]
[1724397692883,7.66487026,2681.3,2681.1,0.06619894]
[1724397693390,7.66487026,2681.3,2681.2,0.06606553]
[1724397693731,7.66487026,2681.3,2680.7,5.0]
[1724397693957,7.66487026,2681.3,2680.8,5.06624383]
[1724397694163,8.80429129,2681.3,2680.8,5.06624383]
[1724397694937,8.80429129,2681.3,2680.9,5.0]
[1724397695536,12.53391129,2681.3,2681.0,0.06615467]
[1724397695750,3.72968,2681.2,2681.0,0.06615467]
[1724397696297,3.72981,2681.1,2681.0,0.06615467]
[1724397696455,3.72981,2681.1,2680.8,5.0]
[1724397696778,3.72981,2681.1,2680.9,0.06410799]
[1724397696982,4.98306713,2681.2,2680.9,0.06410799]
[1724397697654,8.71281713,2681.2,2680.9,0.06410799]
[1724397697978,4.98306713,2681.2,2680.9,0.06410799]
[1724397698966,4.98306713,2681.2,2681.0,5.0]
[1724397699343,4.98306713,2681.2,2681.1,0.06411464]
[1724397699878,1.25339713,2681.2,2681.1,0.06411464]
[1724397700181,1.25339713,2681.2,2680.8,5.0]
[1724397700354,7.66485026,2681.3,2681.1,0.06411464]
[1724397700674,7.66485026,2681.3,2680.8,5.0]
[1724397700883,7.66485026,2681.3,2681.2,0.06407007]
[1724397701086,7.66485026,2681.3,2680.8,5.0]
[1724397701285,7.66485026,2681.3,2681.2,0.06407007]
[1724397701484,8.80428329,2681.3,2680.8,5.0]
[1724397702089,8.80428329,2681.3,2680.9,5.06420379]
[1724397702988,8.80428329,2681.3,2681.0,5.0]
[1724397703394,8.80428329,2681.3,2681.1,0.06387261]
[1724397704619,8.80428329,2681.3,2680.8,5.0]
[1724397704762,8.80428329,2681.3,2681.2,0.06382804]
[1724397704960,8.80428329,2681.3,2681.0,5.0]
[1724397705185,8.80428329,2681.3,2681.2,0.06382804]
[1724397705394,8.80428329,2681.3,2681.1,0.06387261]
[1724397705608,8.80428329,2681.3,2681.2,0.06382804]
[1724397705983,8.80428329,2681.3,2680.9,5.0]
[1724397706460,1.09654398,2681.1,2680.9,5.0]
[1724397706660,1.09654398,2681.1,2681.0,0.06391718]
[1724397707305,4.82642398,2681.1,2680.5,5.0]
[1724397707658,4.82642398,2681.1,2680.6,0.06411775]
[1724397708108,4.82642398,2681.1,2680.6,5.06411775]
[1724397709363,1.09654398,2681.1,2680.6,7.52231775]
[1724397709807,2.4242,2681.2,2680.6,7.52231775]
[1724397710005,5.41134026,2681.3,2680.9,5.0]
[1724397710405,5.41134026,2681.3,2681.0,0.06393942]
[1724397711224,0.58517628,2681.3,2681.0,2.34273942]
[1724397711981,0.58517628,2681.3,2681.1,5.0]
[1724397712364,0.58517628,2681.3,2681.2,0.06376953]
[1724397713916,0.58517628,2681.3,2681.2,5.06376953]
[1724397724934,4.53851929,2681.3,2681.2,0.06376953]
[1724397725140,3.99742026,2681.3,2681.2,0.06376953]
[1724397725853,7.72695026,2681.3,2681.2,0.06376953]
[1724397726195,7.72695026,2681.3,2680.8,5.0]
[1724397726715,7.72695026,2681.3,2680.9,0.06350356]
[1724397726898,3.99742026,2681.3,2681.1,5.0]
[1724397727358,3.99742026,2681.3,2681.2,0.06336984]
[1724397727567,4.77010229,2681.3,2681.2,0.06336984]
[1724397728564,4.77010229,2681.3,2681.0,5.0]
[1724397728693,4.77010229,2681.3,2681.2,0.06336984]
[1724397728894,4.77010229,2681.3,2681.1,0.02153539]
[1724397729130,4.77010229,2681.3,2681.2,0.0591437]
[1724397729131,3.99742026,2681.3,2681.2,0.0591437]
[1724397729335,3.99742026,2681.3,2680.8,4.69836017]
[1724397729538,3.99742026,2681.3,2680.8,4.58657852]
[1724397729741,3.99742026,2681.3,2680.9,0.05540022]
[1724397729902,5.09403361,2681.3,2680.9,0.05540022]
[1724397732263,5.09403361,2681.3,2680.8,5.0]
[1724397732434,5.09403361,2681.3,2681.0,0.05535565]
[1724397732625,5.09403361,2681.3,2680.9,0.05540022]
[1724397732858,5.09403361,2681.3,2680.8,5.0]
[1724397733053,5.09403361,2681.3,2681.0,0.05535565]
[1724397733259,0.88234336,2681.2,2680.8,5.0]
[1724397733473,5.09403361,2681.3,2681.1,0.05531107]
[1724397733669,5.09403361,2681.3,2680.8,5.0]
[1724397733856,5.09403361,2681.3,2681.2,0.0552665]
[1724397734044,5.09403361,2681.3,2680.8,5.0]
[1724397734247,3.99742026,2681.3,2681.2,0.0552665]
[1724397734450,3.99742026,2681.3,2680.8,5.0]
[1724397734652,7.27683398,2680.9,2680.8,5.0]
[1724397735036,6.18042,2680.8,2680.7,5.82869661]
[1724397735237,2.4502,2680.8,2680.7,5.82869661]
[1724397735480,3.50182756,2680.8,2680.7,5.82869661]
[1724397735774,7.23204756,2680.8,2680.7,5.82869661]
[1724397736676,7.23204756,2680.8,2680.7,5.87508204]
[1724397738764,7.23204756,2680.8,2680.7,0.04638543]
[1724397738934,7.23204756,2680.8,2680.3,24.06838113]
[1724397739150,1.09654398,2680.7,2680.4,19.11490033]
[1724397739986,1.68178447,2680.7,2680.4,19.11490033]
[1724397740149,0.58524049,2680.7,2680.4,19.11490033]
[1724397744359,4.82681398,2680.8,2680.4,19.11490033]
[1724397744554,3.73037,2680.7,2680.4,19.11490033]
[1724397744760,2.4791,2680.6,2680.4,0.0465192]
[1724397747064,3.06433666,2680.6,2680.4,0.0465192]
[1724397747271,0.58523666,2680.6,2680.4,0.0465192]
[1724397748856,0.58523666,2680.6,2680.4,5.0465192]
[1724397750681,0.58523666,2680.6,2680.4,24.11490033]
[1724397756113,5.79730269,2683.0,2680.7,3.73036]
[1724397756114,1.09654398,2681.4,2680.7,3.73036]
[1724397756321,1.68168162,2681.6,2680.8,21.32478113]
[1724397756548,2.3811,2681.7,2680.9,8.631102]
[1724397756711,3.72888,2681.8,2681.0,2.2564]
[1724397756896,7.45781,2681.8,2681.1,0.074588]
[1724397757101,3.72888,2681.8,2681.1,0.12113336]
[1724397757448,7.79143798,2681.9,2681.2,2.2564]
[1724397757927,7.79143798,2681.9,2681.3,5.0]
[1724397758137,8.94342378,2681.9,2681.3,5.0]
[1724397758285,8.94342378,2681.9,2681.4,0.04640057]
[1724397758894,1.09654398,2681.7,2681.4,0.04640057]
[1724397760991,1.09654398,2681.7,2681.4,5.04640057]
[1724397763328,3.72925,2681.5,2681.4,5.04640057]
[1724397763529,9.63825338,2681.5,2681.4,5.04640057]
[1724397764039,9.63825338,2681.5,2681.4,0.04640057]
[1724397764245,12.13045338,2681.5,2681.4,0.04640057]
[1724397764646,3.72953,2681.3,2681.2,5.0]
[1724397764842,8.55560398,2681.3,2681.2,5.0]
[1724397765140,6.03917532,2681.3,2680.8,5.0]
[1724397765312,4.82588398,2681.5,2680.8,5.0]
[1724397765497,4.82588398,2681.5,2680.9,2.364]
[1724397765903,2.3723,2681.6,2681.1,5.0]
[1724397766156,1.09654398,2681.5,2681.1,5.0]
[1724397767432,9.10142,2681.6,2681.1,5.0]
[1724397767619,10.384466,2681.6,2681.1,5.0]
[1724397767817,1.09654398,2681.5,2681.1,5.0]
[1724397769348,3.72967,2681.2,2681.1,5.0]
[1724397769727,4.82609398,2681.3,2681.1,5.0]
[1724397770051,4.82609398,2681.3,2680.8,5.82869661]
[1724397770052,9.66116138,2681.3,2680.8,5.82869661]
[1724397770539,5.93152138,2681.3,2680.8,5.82869661]
[1724397771109,2.20197138,2681.3,2680.8,5.82869661]
[1724397771612,5.93151138,2681.3,2680.8,5.82869661]
[1724397771808,4.57273114,2681.2,2680.8,5.82869661]
[1724397772044,1.09654398,2681.1,2680.8,5.82869661]
[1724397772234,2.4703,2681.0,2680.8,5.82869661]
[1724397774017,1.09654398,2680.9,2680.7,5.0]
[1724397774218,6.5413044,2680.8,2680.7,5.0]
[1724397774417,6.18462,2680.8,2680.7,5.0]
[1724397774914,6.18462,2680.8,2680.2,5.82869661]
[1724397775113,1.09654398,2680.6,2680.2,5.82869661]
[1724397775840,3.55094398,2680.8,2680.2,5.82869661]
[1724397776032,3.55094398,2680.8,2680.2,10.82869661]
[1724397776223,8.00932138,2680.8,2680.2,10.82869661]
[1724397777242,4.82712398,2680.6,2680.2,10.82869661]
[1724397777959,4.82712398,2680.6,2680.2,5.82869661]
[1724397778992,4.82712398,2680.6,2679.9,7.4827]
[1724397779571,6.9127974,2680.8,2680.0,0.04552402]
[1724397779760,3.0,2680.7,2680.0,0.04552402]
[1724397779971,3.0,2680.7,2680.2,5.0]
[1724397780382,3.0,2680.7,2680.3,0.04539021]
[1724397780663,4.10093414,2680.7,2680.2,5.0]
[1724397780966,1.09654398,2680.6,2680.4,0.04534561]
[1724397781120,1.09654398,2680.6,2680.3,0.04539021]
[1724397781326,4.10093414,2680.7,2680.2,5.0]
[1724397781641,5.19747812,2680.7,2680.4,0.04534561]
[1724397781838,5.19747812,2680.7,2680.2,5.0]
[1724397782039,5.19747812,2680.7,2680.3,0.04539021]
[1724397782254,5.19747812,2680.7,2680.2,5.0]
[1724397782470,5.19747812,2680.7,2680.4,0.04534561]
[1724397782767,5.19747812,2680.7,2680.2,5.0]
[1724397782984,4.09654398,2680.7,2680.5,0.04530102]
[1724397783288,4.09654398,2680.7,2680.6,0.04525643]
[1724397783473,4.09654398,2680.7,2680.2,5.0]
[1724397783675,4.09654398,2680.7,2680.6,0.04525643]
[1724397783845,4.09654398,2680.7,2680.2,5.0]
[1724397784047,7.82698398,2680.7,2680.6,0.04525643]
[1724397784288,9.30096212,2680.7,2680.2,5.0]
[1724397784485,9.30096212,2680.7,2680.6,0.04525643]
[1724397784708,9.30096212,2680.7,2680.2,5.0]
[1724397784846,9.30096212,2680.7,2680.6,0.04525643]
[1724397785165,9.30096212,2680.7,2679.9,26.55108113]
[1724397785363,9.30096212,2680.7,2680.6,0.04525643]
[1724397785972,9.30096212,2680.7,2679.9,26.55108113]
[1724397786177,7.82698398,2680.7,2679.9,26.55108113]
[1724397786983,4.09654398,2680.7,2679.9,21.55108113]
[1724397787190,3.73051,2680.6,2679.9,21.55108113]
[1724397787751,2.4988,2680.5,2679.9,21.55108113]
[1724397789094,2.4988,2680.5,2680.2,5.0]
[1724397793921,2.4988,2680.5,2680.3,0.04428546]
[1724397794158,2.4988,2680.5,2680.2,5.0]
[1724397794329,3.73051,2680.6,2680.2,5.0]
[1724397794330,3.73051,2680.6,2680.4,0.04424086]
[1724397794480,3.73051,2680.6,2680.3,0.04428546]
[1724397794682,3.73051,2680.6,2680.5,0.04419627]
[1724397794884,3.73051,2680.6,2680.3,2.3845]
[1724397795178,3.73051,2680.6,2680.5,0.04419627]
[1724397795423,3.73051,2680.6,2680.4,0.04424086]
[1724397795584,3.73051,2680.6,2680.5,0.04419627]
[1724397795947,5.19087514,2680.6,2680.3,5.0]
[1724397796118,5.19087514,2680.6,2680.5,0.04419627]
[1724397796276,5.19087514,2680.6,2680.4,0.04424086]
[1724397796617,5.19087514,2680.6,2680.5,0.04419627]
[1724397797325,5.19087514,2680.6,2680.3,5.0]
[1724397797617,3.73051,2680.6,2680.5,0.04419627]
[1724397798121,3.73051,2680.6,2680.3,5.0]
[1724397798318,3.73051,2680.6,2680.5,0.04419627]
[1724397798759,3.73051,2680.6,2680.3,5.0]
[1724397798959,3.73051,2680.6,2680.5,0.04281309]
[1724397799157,3.73051,2680.6,2680.4,0.04285768]
[1724397799367,3.73051,2680.6,2680.5,0.04281309]
[1724397799717,3.73051,2680.6,2680.3,5.0]
[1724397799962,3.73051,2680.6,2680.5,0.04281309]
[1724397800161,3.73051,2680.6,2680.4,0.04285768]
[1724397800365,3.73051,2680.6,2680.5,0.04281309]
[1724397800781,3.73051,2680.6,2680.3,5.0]
[1724397800987,6.0485,2680.8,2680.5,0.04281309]
[1724397801134,4.82659398,2681.0,2680.4,0.04281341]
[1724397801336,4.82659398,2681.0,2680.5,2.3389]
[1724397801655,4.82659398,2681.0,2680.6,0.04272423]
[1724397802046,4.82659398,2681.0,2680.6,5.04272423]
[1724397804974,2.2972,2681.1,2680.6,5.04272423]
[1724397805271,3.0,2681.1,2680.6,5.04272423]